[Event "2026 Biel Blitz Open"]
[Site "Biel, CH"]
[Date "2026.07.19"]
[Round "11"]
[White "Safarli, Eltaj"]
[Black "Aronyak Ghosh"]
[Result "1-0"]
[Board "3"]
[TimeControl "180+2"]
[WhiteFideId "13402129"]
[BlackFideId "25072846"]
[WhiteElo "2619"]
[BlackElo "2488"]
[WhiteTitle "GM"]
[BlackTitle "IM"]
[WhiteClock "0:00:32"]
[BlackClock "0:00:04"]
[Variant "Standard"]
[EndDate "2026.07.19"]
[EndTime "15:24:21"]

1. e4 {[%clk 0:03:02]}  c6 {[%clk 0:03:03]} 2. d4 {[%clk 0:03:02]}  d5 {[%clk 0:03:03]} 3. exd5 {[%clk 0:03:02]}  cxd5 {[%clk 0:03:01]}
4. c4 {[%clk 0:03:04]}  Nf6 {[%clk 0:02:58]} 5. Nc3 {[%clk 0:03:05]}  Nc6 {[%clk 0:02:55]} 6. Bg5 {[%clk 0:03:04]}  Be6 {[%clk 0:02:50]}
7. Be2 {[%clk 0:03:03]}  h6 {[%clk 0:02:18]} 8. Bxf6 {[%clk 0:03:00]}  exf6 {[%clk 0:02:17]} 9. Bf3 {[%clk 0:03:00]}  Bb4 {[%clk 0:02:09]}
10. Nge2 {[%clk 0:02:59]}  O-O {[%clk 0:01:58]} 11. O-O {[%clk 0:03:00]}  Ne7 {[%clk 0:01:53]} 12. c5 {[%clk 0:03:01]}  Ba5 {[%clk 0:01:46]}
13. Nf4 {[%clk 0:02:46]}  Qd7 {[%clk 0:01:19]} 14. Re1 {[%clk 0:02:40]}  Rfe8 {[%clk 0:01:01]} 15. Nxe6 {[%clk 0:02:03]}  fxe6 {[%clk 0:01:02]}
16. Rb1 {[%clk 0:02:04]}  Nc6 {[%clk 0:00:52]} 17. a3 {[%clk 0:02:03]}  Bxc3 {[%clk 0:00:37]} 18. bxc3 {[%clk 0:02:04]}  Rab8 {[%clk 0:00:39]}
19. h4 {[%clk 0:01:45]}  b6 {[%clk 0:00:36]} 20. cxb6 {[%clk 0:01:45]}  axb6 {[%clk 0:00:35]} 21. Qd3 {[%clk 0:01:39]}  Qd6 {[%clk 0:00:32]}
22. a4 {[%clk 0:01:30]}  Ne7 {[%clk 0:00:31]} 23. Bg4 {[%clk 0:01:27]}  f5 {[%clk 0:00:31]} 24. Bh5 {[%clk 0:01:27]}  Rec8 {[%clk 0:00:30]}
25. Qe2 {[%clk 0:01:17]}  Rc6 {[%clk 0:00:29]} 26. Rbd1 {[%clk 0:01:07]}  g6 {[%clk 0:00:26]} 27. Bf3 {[%clk 0:01:09]}  Rbc8 {[%clk 0:00:24]}
28. Rd3 {[%clk 0:01:10]}  Kf7 {[%clk 0:00:20]} 29. Qd2 {[%clk 0:01:10]}  Ng8 {[%clk 0:00:20]} 30. Rde3 {[%clk 0:01:09]}  Qc7 {[%clk 0:00:20]}
31. c4 {[%clk 0:01:08]}  Nf6 {[%clk 0:00:11]} 32. cxd5 {[%clk 0:01:09]}  exd5 {[%clk 0:00:13]} 33. Re5 {[%clk 0:01:00]}  Rc1 {[%clk 0:00:09]}
34. Qxh6 {[%clk 0:00:58]}  Rxe1+ {[%clk 0:00:09]} 35. Rxe1 {[%clk 0:00:59]}  Qc3 {[%clk 0:00:08]} 36. Rd1 {[%clk 0:00:54]}  Qc2 {[%clk 0:00:07]}
37. h5 {[%clk 0:00:51]}  Rg8 {[%clk 0:00:06]} 38. hxg6+ {[%clk 0:00:49]}  Rxg6 {[%clk 0:00:08]} 39. Qf4 {[%clk 0:00:50]}  Qxa4 {[%clk 0:00:06]}
40. Qxf5 {[%clk 0:00:48]}  Kg7 {[%clk 0:00:07]} 41. Rc1 {[%clk 0:00:43]}  Qa7 {[%clk 0:00:07]} 42. Qe5 {[%clk 0:00:36]}  Kh6 {[%clk 0:00:04]}
43. Qf4+ {[%clk 0:00:32]} 1-0

[Event "2026 Biel Blitz Open"]
[Site "Biel, CH"]
[Date "2026.07.19"]
[Round "11"]
[White "Thorfinnsson, Bjorn"]
[Black "Alexakis, Dimitris"]
[Result "1/2-1/2"]
[Board "4"]
[TimeControl "180+2"]
[WhiteFideId "2300982"]
[BlackFideId "4277023"]
[WhiteElo "2396"]
[BlackElo "2459"]
[WhiteTitle "IM"]
[BlackTitle "GM"]
[WhiteClock "0:00:17"]
[BlackClock "0:00:06"]
[Variant "Standard"]
[EndDate "2026.07.19"]
[EndTime "15:26:05"]

1. d4 {[%clk 0:03:03]}  Nf6 {[%clk 0:03:03]} 2. Nf3 {[%clk 0:03:04]}  c5 {[%clk 0:03:03]} 3. c3 {[%clk 0:03:05]}  d5 {[%clk 0:03:03]}
4. Bg5 {[%clk 0:03:05]}  Nc6 {[%clk 0:03:02]} 5. e3 {[%clk 0:03:05]}  Qb6 {[%clk 0:02:41]} 6. Qb3 {[%clk 0:03:05]}  Ne4 {[%clk 0:02:31]}
7. Bf4 {[%clk 0:03:04]}  Bf5 {[%clk 0:02:11]} 8. Nbd2 {[%clk 0:03:02]}  e6 {[%clk 0:02:11]} 9. Qxb6 {[%clk 0:02:55]}  axb6 {[%clk 0:02:12]}
10. Nxe4 {[%clk 0:02:51]}  Bxe4 {[%clk 0:01:59]} 11. Bc7 {[%clk 0:02:47]}  Bxf3 {[%clk 0:01:31]} 12. gxf3 {[%clk 0:02:48]}  c4 {[%clk 0:01:32]}
13. a3 {[%clk 0:02:23]}  b5 {[%clk 0:01:30]} 14. Rd1 {[%clk 0:02:20]}  Kd7 {[%clk 0:01:29]} 15. Bg3 {[%clk 0:02:20]}  h5 {[%clk 0:01:24]}
16. h4 {[%clk 0:02:20]}  g6 {[%clk 0:01:17]} 17. Bg2 {[%clk 0:02:16]}  Be7 {[%clk 0:01:07]} 18. Kd2 {[%clk 0:02:15]}  Bd6 {[%clk 0:00:55]}
19. Rde1 {[%clk 0:02:15]}  Ne7 {[%clk 0:00:56]} 20. e4 {[%clk 0:02:14]}  Rag8 {[%clk 0:00:52]} 21. Reg1 {[%clk 0:02:08]}  g5 {[%clk 0:00:45]}
22. hxg5 {[%clk 0:01:54]}  Bxg3 {[%clk 0:00:16]} 23. fxg3 {[%clk 0:01:53]}  Rxg5 {[%clk 0:00:17]} 24. Bf1 {[%clk 0:01:35]}  Rhg8 {[%clk 0:00:17]}
25. Rh3 {[%clk 0:01:25]}  dxe4 {[%clk 0:00:16]} 26. fxe4 {[%clk 0:01:25]}  f5 {[%clk 0:00:18]} 27. Be2 {[%clk 0:00:52]}  fxe4 {[%clk 0:00:14]}
28. Rxh5 {[%clk 0:00:52]}  Rxg3 {[%clk 0:00:09]} 29. Rxg3 {[%clk 0:00:51]}  Rxg3 {[%clk 0:00:09]} 30. Rxb5 {[%clk 0:00:52]}  e3+ {[%clk 0:00:11]}
31. Kc2 {[%clk 0:00:46]}  Rg2 {[%clk 0:00:11]} 32. Kd1 {[%clk 0:00:48]}  Rg1+ {[%clk 0:00:12]} 33. Kc2 {[%clk 0:00:49]}  Rg2 {[%clk 0:00:13]}
34. Kd1 {[%clk 0:00:51]}  Rg1+ {[%clk 0:00:04]} 35. Kc2 {[%clk 0:00:52]}  Rg2 {[%clk 0:00:04]} 36. Kd1 {[%clk 0:00:51]}  Nd5 {[%clk 0:00:04]}
37. Bxc4 {[%clk 0:00:42]}  Nf4 {[%clk 0:00:05]} 38. Rxb7+ {[%clk 0:00:33]}  Kc6 {[%clk 0:00:03]} 39. Rf7 {[%clk 0:00:31]}  Rg1+ {[%clk 0:00:04]}
40. Kc2 {[%clk 0:00:30]}  e2 {[%clk 0:00:06]} 41. Bxe2 {[%clk 0:00:28]}  Nxe2 {[%clk 0:00:06]} 42. Rf2 {[%clk 0:00:22]}  Ng3 {[%clk 0:00:06]}
43. b4 {[%clk 0:00:17]}  Ne4 {[%clk 0:00:06]} 44. Re2 {[%clk 0:00:13]}  Kd5 {[%clk 0:00:07]} 45. Re3 {[%clk 0:00:14]}  Rg2+ {[%clk 0:00:07]}
46. Kb3 {[%clk 0:00:15]}  Nd2+ {[%clk 0:00:08]} 47. Ka4 {[%clk 0:00:16]}  Nc4 {[%clk 0:00:09]} 48. Rh3 {[%clk 0:00:17]}  Rg8 {[%clk 0:00:04]}
49. Rh5+ {[%clk 0:00:17]}  Kd6 {[%clk 0:00:05]} 50. Kb3 {[%clk 0:00:18]}  Nd2+ {[%clk 0:00:06]} 51. Kc2 {[%clk 0:00:19]}  Rg2 {[%clk 0:00:07]}
52. a4 {[%clk 0:00:19]}  Ne4+ {[%clk 0:00:05]} 53. Kd3 {[%clk 0:00:19]}  Nf2+ {[%clk 0:00:06]} 54. Kc4 {[%clk 0:00:19]}  Nd1 {[%clk 0:00:06]}
55. Rh3 {[%clk 0:00:19]}  Ra2 {[%clk 0:00:04]} 56. a5 {[%clk 0:00:20]}  Ra3 {[%clk 0:00:04]} 57. Rg3 {[%clk 0:00:13]}  Kd7 {[%clk 0:00:05]}
58. Rh3 {[%clk 0:00:14]}  Kd6 {[%clk 0:00:06]} 59. Rg3 {[%clk 0:00:15]}  Kc7 {[%clk 0:00:06]} 60. Rh3 {[%clk 0:00:15]}  Kb7 {[%clk 0:00:04]}
61. Rg3 {[%clk 0:00:16]}  Kc7 {[%clk 0:00:04]} 62. Rh3 {[%clk 0:00:17]}  Kd6 {[%clk 0:00:06]} 63. Rg3 {[%clk 0:00:18]}  Kd7 {[%clk 0:00:07]}
64. Rh3 {[%clk 0:00:19]}  Kd6 {[%clk 0:00:05]} 65. Rg3 {[%clk 0:00:19]}  Kd7 {[%clk 0:00:04]} 66. Rh3 {[%clk 0:00:16]} 1/2-1/2

[Event "2026 Biel Blitz Open"]
[Site "Biel, CH"]
[Date "2026.07.19"]
[Round "11"]
[White "Arjun Kalyan"]
[Black "Mohammad Nubairshah Shaikh"]
[Result "1/2-1/2"]
[Board "5"]
[TimeControl "180+2"]
[WhiteFideId "35018701"]
[BlackFideId "5053196"]
[WhiteElo "2451"]
[BlackElo "2316"]
[WhiteTitle "GM"]
[BlackTitle "IM"]
[WhiteClock "0:00:10"]
[BlackClock "0:00:09"]
[Variant "Standard"]
[EndDate "2026.07.19"]
[EndTime "15:25:23"]

1. e4 {[%clk 0:03:03]}  c6 {[%clk 0:03:04]} 2. d4 {[%clk 0:03:04]}  d5 {[%clk 0:03:05]} 3. e5 {[%clk 0:03:06]}  Bf5 {[%clk 0:03:04]}
4. h4 {[%clk 0:03:07]}  h5 {[%clk 0:03:05]} 5. Bd3 {[%clk 0:03:08]}  Bxd3 {[%clk 0:03:05]} 6. Qxd3 {[%clk 0:03:09]}  Qa5+ {[%clk 0:03:06]}
7. Nd2 {[%clk 0:03:09]}  e6 {[%clk 0:03:07]} 8. Ne2 {[%clk 0:03:09]}  c5 {[%clk 0:03:03]} 9. c4 {[%clk 0:03:09]}  cxd4 {[%clk 0:02:57]}
10. Qb3 {[%clk 0:02:49]}  Nd7 {[%clk 0:02:57]} 11. cxd5 {[%clk 0:02:43]}  Qxd5 {[%clk 0:02:57]} 12. Qxd5 {[%clk 0:02:42]}  exd5 {[%clk 0:02:58]}
13. Nf3 {[%clk 0:02:40]}  Bc5 {[%clk 0:03:00]} 14. Nf4 {[%clk 0:02:38]}  Ne7 {[%clk 0:03:00]} 15. e6 {[%clk 0:02:37]}  fxe6 {[%clk 0:03:00]}
16. Nxe6 {[%clk 0:02:38]}  Kf7 {[%clk 0:02:52]} 17. Nexd4 {[%clk 0:02:29]}  Bxd4 {[%clk 0:02:19]} 18. Nxd4 {[%clk 0:02:31]}  Nc6 {[%clk 0:02:20]}
19. Be3 {[%clk 0:02:11]}  Nxd4 {[%clk 0:01:49]} 20. Bxd4 {[%clk 0:02:12]}  Rhe8+ {[%clk 0:01:46]} 21. Kd2 {[%clk 0:02:11]}  Re4 {[%clk 0:01:40]}
22. Kd3 {[%clk 0:01:57]}  Rae8 {[%clk 0:01:12]} 23. Rac1 {[%clk 0:01:58]}  Ne5+ {[%clk 0:01:12]} 24. Bxe5 {[%clk 0:01:57]}  R8xe5 {[%clk 0:01:13]}
25. Rc7+ {[%clk 0:01:50]}  Re7 {[%clk 0:01:14]} 26. Rxe7+ {[%clk 0:01:47]}  Kxe7 {[%clk 0:01:05]} 27. g3 {[%clk 0:01:43]}  Kd6 {[%clk 0:01:03]}
28. Rc1 {[%clk 0:01:42]}  Rb4 {[%clk 0:00:23]} 29. b3 {[%clk 0:01:41]}  g5 {[%clk 0:00:13]} 30. hxg5 {[%clk 0:01:33]}  Rg4 {[%clk 0:00:15]}
31. Rc8 {[%clk 0:01:02]}  Rxg5 {[%clk 0:00:16]} 32. Rd8+ {[%clk 0:01:03]}  Ke6 {[%clk 0:00:13]} 33. Re8+ {[%clk 0:01:02]}  Kd6 {[%clk 0:00:07]}
34. Rf8 {[%clk 0:01:03]}  a5 {[%clk 0:00:06]} 35. Rf6+ {[%clk 0:01:02]}  Kc5 {[%clk 0:00:05]} 36. a3 {[%clk 0:00:59]}  b6 {[%clk 0:00:04]}
37. Rf8 {[%clk 0:00:49]}  Re5 {[%clk 0:00:04]} 38. Rc8+ {[%clk 0:00:42]}  Kd6 {[%clk 0:00:06]} 39. f4 {[%clk 0:00:38]}  Re1 {[%clk 0:00:06]}
40. Rd8+ {[%clk 0:00:35]}  Kc6 {[%clk 0:00:05]} 41. Rc8+ {[%clk 0:00:31]}  Kd6 {[%clk 0:00:06]} 42. Rg8 {[%clk 0:00:29]}  Rb1 {[%clk 0:00:05]}
43. Kc2 {[%clk 0:00:28]}  Rg1 {[%clk 0:00:05]} 44. Rg5 {[%clk 0:00:27]}  b5 {[%clk 0:00:04]} 45. b4 {[%clk 0:00:24]}  a4 {[%clk 0:00:04]}
46. Rg6+ {[%clk 0:00:22]}  Kc7 {[%clk 0:00:04]} 47. Rg5 {[%clk 0:00:22]}  Kd6 {[%clk 0:00:06]} 48. f5 {[%clk 0:00:19]}  Ke5 {[%clk 0:00:07]}
49. f6+ {[%clk 0:00:12]}  Kxf6 {[%clk 0:00:08]} 50. Rxd5 {[%clk 0:00:11]}  Rg2+ {[%clk 0:00:08]} 51. Kb1 {[%clk 0:00:10]}  Rxg3 {[%clk 0:00:09]}
52. Rxh5 {[%clk 0:00:10]}  Rxa3 {[%clk 0:00:09]} 53. Rxb5 {[%clk 0:00:11]}  Ke6 {[%clk 0:00:08]} 54. Kb2 {[%clk 0:00:12]}  Rb3+ {[%clk 0:00:09]}
55. Ka2 {[%clk 0:00:10]} 1/2-1/2

[Event "2026 Biel Blitz Open"]
[Site "Biel, CH"]
[Date "2026.07.19"]
[Round "11"]
[White "Ling, Chenxuan"]
[Black "Kukushkin, Ivan"]
[Result "1-0"]
[Board "6"]
[TimeControl "180+2"]
[WhiteFideId "30983118"]
[BlackFideId "11634103"]
[WhiteElo "2235"]
[BlackElo "2265"]
[WhiteTitle "CM"]
[BlackTitle "FM"]
[WhiteClock "0:00:18"]
[BlackClock "0:00:10"]
[Variant "Standard"]
[EndDate "2026.07.19"]
[EndTime "15:24:47"]

1. d4 {[%clk 0:03:03]}  d5 {[%clk 0:03:03]} 2. c4 {[%clk 0:03:04]}  e6 {[%clk 0:03:04]} 3. Nc3 {[%clk 0:03:05]}  Nf6 {[%clk 0:03:05]}
4. Nf3 {[%clk 0:03:07]}  Be7 {[%clk 0:03:05]} 5. Bf4 {[%clk 0:03:07]}  c6 {[%clk 0:03:06]} 6. e3 {[%clk 0:03:09]}  O-O {[%clk 0:03:06]}
7. Bd3 {[%clk 0:03:09]}  Nbd7 {[%clk 0:03:05]} 8. O-O {[%clk 0:03:09]}  dxc4 {[%clk 0:02:50]} 9. Bxc4 {[%clk 0:03:10]}  c5 {[%clk 0:02:52]}
10. dxc5 {[%clk 0:03:06]}  Nxc5 {[%clk 0:02:52]} 11. Qe2 {[%clk 0:03:06]}  Bd7 {[%clk 0:02:37]} 12. Rfd1 {[%clk 0:03:07]}  Qb6 {[%clk 0:02:28]}
13. Ne5 {[%clk 0:03:01]}  Be8 {[%clk 0:02:27]} 14. a4 {[%clk 0:02:45]}  Nb3 {[%clk 0:01:44]} 15. Rab1 {[%clk 0:02:41]}  Na5 {[%clk 0:01:42]}
16. Bb5 {[%clk 0:02:37]}  a6 {[%clk 0:01:32]} 17. Bxe8 {[%clk 0:02:34]}  Rfxe8 {[%clk 0:01:32]} 18. Nd7 {[%clk 0:02:16]}  Nxd7 {[%clk 0:01:32]}
19. Rxd7 {[%clk 0:02:17]}  Rac8 {[%clk 0:01:30]} 20. Ne4 {[%clk 0:02:11]}  Nc4 {[%clk 0:01:26]} 21. b3 {[%clk 0:02:03]}  Na3 {[%clk 0:01:23]}
22. Rbd1 {[%clk 0:01:49]}  Qxb3 {[%clk 0:01:17]} 23. Bd6 {[%clk 0:01:49]}  Bf8 {[%clk 0:00:40]} 24. Qg4 {[%clk 0:01:32]}  Rc4 {[%clk 0:00:25]}
25. Bxa3 {[%clk 0:00:40]}  Kh8 {[%clk 0:00:17]} 26. Bxf8 {[%clk 0:00:39]}  Rxf8 {[%clk 0:00:17]} 27. Rd8 {[%clk 0:00:35]}  Rc8 {[%clk 0:00:16]}
28. Rxf8+ {[%clk 0:00:35]}  Rxf8 {[%clk 0:00:18]} 29. Nd6 {[%clk 0:00:35]}  f5 {[%clk 0:00:18]} 30. Qe2 {[%clk 0:00:35]}  Qxa4 {[%clk 0:00:18]}
31. Nxb7 {[%clk 0:00:35]}  Qc6 {[%clk 0:00:16]} 32. Na5 {[%clk 0:00:35]}  Qb6 {[%clk 0:00:16]} 33. Nc4 {[%clk 0:00:35]}  Qb5 {[%clk 0:00:16]}
34. h3 {[%clk 0:00:31]}  h6 {[%clk 0:00:14]} 35. Qd3 {[%clk 0:00:31]}  a5 {[%clk 0:00:13]} 36. Nd6 {[%clk 0:00:30]}  Qc6 {[%clk 0:00:12]}
37. Nc4 {[%clk 0:00:29]}  Ra8 {[%clk 0:00:09]} 38. Ne5 {[%clk 0:00:29]}  Qc5 {[%clk 0:00:09]} 39. Qd4 {[%clk 0:00:28]}  Qc7 {[%clk 0:00:09]}
40. Qf4 {[%clk 0:00:24]}  Kg8 {[%clk 0:00:08]} 41. Rd7 {[%clk 0:00:25]}  Qc1+ {[%clk 0:00:05]} 42. Kh2 {[%clk 0:00:25]}  Qb2 {[%clk 0:00:06]}
43. Qg3 {[%clk 0:00:23]}  g5 {[%clk 0:00:08]} 44. h4 {[%clk 0:00:22]}  g4 {[%clk 0:00:01]} 45. Nxg4 {[%clk 0:00:18]}  fxg4 {[%clk 0:00:08]}
46. Qxg4+ {[%clk 0:00:19]}  Kh8 {[%clk 0:00:09]} 47. Qg6 {[%clk 0:00:14]}  Qe5+ {[%clk 0:00:10]} 48. f4 {[%clk 0:00:18]} 1-0

[Event "2026 Biel Blitz Open"]
[Site "Biel, CH"]
[Date "2026.07.19"]
[Round "11"]
[White "Amonatov, Farrukh"]
[Black "Kozak, Adam"]
[Result "0-1"]
[Board "7"]
[TimeControl "180+2"]
[WhiteFideId "14700077"]
[BlackFideId "753246"]
[WhiteElo "2585"]
[BlackElo "2537"]
[WhiteTitle "GM"]
[BlackTitle "GM"]
[WhiteClock "0:00:15"]
[BlackClock "0:00:06"]
[Variant "Standard"]
[EndDate "2026.07.19"]
[EndTime "15:25:38"]

1. e4 {[%clk 0:03:03]}  e5 {[%clk 0:03:03]} 2. Nf3 {[%clk 0:03:03]}  Nc6 {[%clk 0:03:04]} 3. Bb5 {[%clk 0:03:04]}  Nf6 {[%clk 0:03:05]}
4. d3 {[%clk 0:03:04]}  Bc5 {[%clk 0:03:05]} 5. Bxc6 {[%clk 0:03:04]}  dxc6 {[%clk 0:03:06]} 6. Qe2 {[%clk 0:03:05]}  Nd7 {[%clk 0:03:06]}
7. Nbd2 {[%clk 0:03:02]}  Qe7 {[%clk 0:03:02]} 8. Nc4 {[%clk 0:03:03]}  b6 {[%clk 0:02:49]} 9. O-O {[%clk 0:03:00]}  Ba6 {[%clk 0:02:35]}
10. Ne3 {[%clk 0:02:55]}  g6 {[%clk 0:02:26]} 11. a3 {[%clk 0:02:55]}  f6 {[%clk 0:02:07]} 12. b4 {[%clk 0:02:50]}  Bd6 {[%clk 0:02:07]}
13. c4 {[%clk 0:02:47]}  Bb7 {[%clk 0:01:44]} 14. Bb2 {[%clk 0:02:37]}  c5 {[%clk 0:01:27]} 15. b5 {[%clk 0:02:36]}  Qf7 {[%clk 0:00:56]}
16. Nd2 {[%clk 0:02:30]}  a5 {[%clk 0:00:55]} 17. Nd5 {[%clk 0:02:25]}  O-O-O {[%clk 0:00:41]} 18. a4 {[%clk 0:02:21]}  g5 {[%clk 0:00:35]}
19. Ne3 {[%clk 0:02:17]}  Nf8 {[%clk 0:00:36]} 20. Nf5 {[%clk 0:02:17]}  Ne6 {[%clk 0:00:36]} 21. g3 {[%clk 0:02:16]}  Kb8 {[%clk 0:00:35]}
22. Rfe1 {[%clk 0:02:11]}  h5 {[%clk 0:00:36]} 23. Nf1 {[%clk 0:02:12]}  Nd4 {[%clk 0:00:36]} 24. Bxd4 {[%clk 0:02:01]}  exd4 {[%clk 0:00:37]}
25. Nd2 {[%clk 0:01:54]}  Rde8 {[%clk 0:00:38]} 26. Nf3 {[%clk 0:01:39]}  Bc8 {[%clk 0:00:37]} 27. Qf1 {[%clk 0:00:37]}  Qh7 {[%clk 0:00:38]}
28. Nxd6 {[%clk 0:00:33]}  cxd6 {[%clk 0:00:40]} 29. Nd2 {[%clk 0:00:34]}  h4 {[%clk 0:00:37]} 30. Qg2 {[%clk 0:00:35]}  Ka7 {[%clk 0:00:22]}
31. Re2 {[%clk 0:00:34]}  Qh5 {[%clk 0:00:16]} 32. Rae1 {[%clk 0:00:34]}  Re7 {[%clk 0:00:16]} 33. f3 {[%clk 0:00:35]}  hxg3 {[%clk 0:00:14]}
34. hxg3 {[%clk 0:00:36]}  Reh7 {[%clk 0:00:12]} 35. g4 {[%clk 0:00:25]}  Qe8 {[%clk 0:00:11]} 36. Nf1 {[%clk 0:00:25]}  Rh3 {[%clk 0:00:10]}
37. Ng3 {[%clk 0:00:22]}  Qe5 {[%clk 0:00:11]} 38. Nf1 {[%clk 0:00:13]}  Qf4 {[%clk 0:00:09]} 39. Rf2 {[%clk 0:00:12]}  Kb8 {[%clk 0:00:06]}
40. Ree2 {[%clk 0:00:14]}  Bd7 {[%clk 0:00:07]} 41. Re1 {[%clk 0:00:15]}  Be6 {[%clk 0:00:08]} 42. Rd1 {[%clk 0:00:16]}  Bxg4 {[%clk 0:00:04]}
43. Qxg4 {[%clk 0:00:14]}  Rh1+ {[%clk 0:00:05]} 44. Kg2 {[%clk 0:00:15]}  R8h2+ {[%clk 0:00:06]} 0-1

[Event "2026 Biel Blitz Open"]
[Site "Biel, CH"]
[Date "2026.07.19"]
[Round "11"]
[White "Ragavan, Samarth Rajesh"]
[Black "Gloeckler, Christian"]
[Result "0-1"]
[Board "8"]
[TimeControl "180+2"]
[WhiteFideId "39918106"]
[BlackFideId "34608966"]
[WhiteElo "2101"]
[BlackElo "2513"]
[BlackTitle "IM"]
[WhiteClock "0:00:23"]
[BlackClock "0:01:24"]
[Variant "Standard"]
[EndDate "2026.07.19"]
[EndTime "15:23:16"]

1. d4 {[%clk 0:03:03]}  Nf6 {[%clk 0:03:04]} 2. c4 {[%clk 0:03:04]}  e6 {[%clk 0:03:05]} 3. g3 {[%clk 0:03:05]}  d5 {[%clk 0:03:06]}
4. Bg2 {[%clk 0:03:06]}  Be7 {[%clk 0:03:07]} 5. Nf3 {[%clk 0:03:07]}  O-O {[%clk 0:03:07]} 6. O-O {[%clk 0:03:07]}  Nbd7 {[%clk 0:03:08]}
7. Qc2 {[%clk 0:03:07]}  a5 {[%clk 0:03:09]} 8. Nbd2 {[%clk 0:03:07]}  c5 {[%clk 0:03:10]} 9. Rd1 {[%clk 0:03:05]}  h6 {[%clk 0:03:04]}
10. cxd5 {[%clk 0:03:01]}  Nxd5 {[%clk 0:03:05]} 11. Ne4 {[%clk 0:02:58]}  b6 {[%clk 0:03:01]} 12. dxc5 {[%clk 0:02:52]}  Nxc5 {[%clk 0:03:02]}
13. Nxc5 {[%clk 0:02:47]}  Bxc5 {[%clk 0:03:02]} 14. Bd2 {[%clk 0:02:33]}  Ba6 {[%clk 0:02:53]} 15. e4 {[%clk 0:02:30]}  Rc8 {[%clk 0:02:50]}
16. Qb1 {[%clk 0:02:17]}  Nf6 {[%clk 0:02:21]} 17. Bc3 {[%clk 0:01:52]}  Qe7 {[%clk 0:02:14]} 18. Qc2 {[%clk 0:01:27]}  Ng4 {[%clk 0:02:13]}
19. Rd2 {[%clk 0:01:26]}  Rfd8 {[%clk 0:02:14]} 20. Rad1 {[%clk 0:01:23]}  Rxd2 {[%clk 0:02:08]} 21. Rxd2 {[%clk 0:01:24]}  Rd8 {[%clk 0:02:11]}
22. Bd4 {[%clk 0:01:16]}  Bxd4 {[%clk 0:02:08]} 23. Rxd4 {[%clk 0:01:16]}  Rc8 {[%clk 0:01:56]} 24. Qd2 {[%clk 0:01:14]}  Qc7 {[%clk 0:01:54]}
25. h3 {[%clk 0:01:05]}  Nf6 {[%clk 0:01:38]} 26. Ne1 {[%clk 0:00:50]}  Bb7 {[%clk 0:01:26]} 27. Nd3 {[%clk 0:00:42]}  e5 {[%clk 0:01:25]}
28. Rd5 {[%clk 0:00:30]}  Bxd5 {[%clk 0:01:22]} 29. exd5 {[%clk 0:00:36]}  e4 {[%clk 0:01:23]} 30. Nf4 {[%clk 0:00:35]}  Qc1+ {[%clk 0:01:24]}
31. Qxc1 {[%clk 0:00:34]}  Rxc1+ {[%clk 0:01:25]} 32. Kh2 {[%clk 0:00:36]}  Rd1 {[%clk 0:01:26]} 33. g4 {[%clk 0:00:33]}  g5 {[%clk 0:01:25]}
34. Ne2 {[%clk 0:00:33]}  Rxd5 {[%clk 0:01:23]} 35. Nc3 {[%clk 0:00:32]}  Re5 {[%clk 0:01:24]} 36. Kg3 {[%clk 0:00:33]}  Kf8 {[%clk 0:01:25]}
37. Bf1 {[%clk 0:00:33]}  Ke7 {[%clk 0:01:25]} 38. Bc4 {[%clk 0:00:33]}  h5 {[%clk 0:01:24]} 39. gxh5 {[%clk 0:00:26]}  Nxh5+ {[%clk 0:01:25]}
40. Kg4 {[%clk 0:00:27]}  Nf6+ {[%clk 0:01:24]} 41. Kg3 {[%clk 0:00:29]}  e3 {[%clk 0:01:25]} 42. f3 {[%clk 0:00:26]}  Rc5 {[%clk 0:01:24]}
43. Bd3 {[%clk 0:00:23]}  Nh5+ {[%clk 0:01:24]} 0-1

[Event "2026 Biel Blitz Open"]
[Site "Biel, CH"]
[Date "2026.07.19"]
[Round "11"]
[White "Rappazzo, Johannes"]
[Black "Tureshbayev, Anuar"]
[Result "1-0"]
[Board "9"]
[TimeControl "180+2"]
[WhiteFideId "1340069"]
[BlackFideId "651081709"]
[WhiteElo "2032"]
[BlackElo "2328"]
[WhiteTitle "FM"]
[BlackTitle "FM"]
[WhiteClock "0:01:26"]
[BlackClock "0:00:28"]
[Variant "Standard"]
[EndDate "2026.07.19"]
[EndTime "15:22:41"]

1. e4 {[%clk 0:03:03]}  c5 {[%clk 0:03:03]} 2. Nf3 {[%clk 0:03:04]}  d6 {[%clk 0:03:04]} 3. d4 {[%clk 0:03:06]}  cxd4 {[%clk 0:03:05]}
4. Nxd4 {[%clk 0:03:07]}  Nf6 {[%clk 0:03:06]} 5. Nc3 {[%clk 0:03:08]}  g6 {[%clk 0:03:07]} 6. Be3 {[%clk 0:03:09]}  Bg7 {[%clk 0:03:08]}
7. f3 {[%clk 0:03:10]}  O-O {[%clk 0:03:08]} 8. Qd2 {[%clk 0:03:11]}  Nc6 {[%clk 0:03:10]} 9. Bc4 {[%clk 0:03:12]}  Nxd4 {[%clk 0:03:11]}
10. Bxd4 {[%clk 0:03:13]}  Be6 {[%clk 0:03:12]} 11. Bb3 {[%clk 0:03:14]}  Qa5 {[%clk 0:03:12]} 12. O-O-O {[%clk 0:03:13]}  Bxb3 {[%clk 0:03:06]}
13. cxb3 {[%clk 0:03:11]}  b5 {[%clk 0:03:06]} 14. Kb1 {[%clk 0:03:11]}  b4 {[%clk 0:03:07]} 15. Nd5 {[%clk 0:03:08]}  Nxd5 {[%clk 0:03:05]}
16. Bxg7 {[%clk 0:03:05]}  Kxg7 {[%clk 0:03:00]} 17. exd5 {[%clk 0:03:02]}  Rac8 {[%clk 0:02:42]} 18. h4 {[%clk 0:03:01]}  h5 {[%clk 0:02:39]}
19. g4 {[%clk 0:02:59]}  Rh8 {[%clk 0:02:38]} 20. Rhg1 {[%clk 0:02:36]}  hxg4 {[%clk 0:02:35]} 21. Rxg4 {[%clk 0:02:23]}  Rh5 {[%clk 0:02:28]}
22. Qd4+ {[%clk 0:02:18]}  Kh7 {[%clk 0:02:22]} 23. Rg5 {[%clk 0:02:17]}  Rh6 {[%clk 0:01:09]} 24. h5 {[%clk 0:02:08]}  Qc5 {[%clk 0:01:08]}
25. hxg6+ {[%clk 0:02:06]}  fxg6 {[%clk 0:01:10]} 26. Qe4 {[%clk 0:01:58]}  e5 {[%clk 0:00:58]} 27. dxe6 {[%clk 0:01:41]}  Qxg5 {[%clk 0:00:56]}
28. Qb7+ {[%clk 0:01:43]}  Kh8 {[%clk 0:00:51]} 29. Qxc8+ {[%clk 0:01:44]}  Kh7 {[%clk 0:00:52]} 30. Qd7+ {[%clk 0:01:41]}  Kh8 {[%clk 0:00:52]}
31. Rc1 {[%clk 0:01:30]}  Qf5+ {[%clk 0:00:49]} 32. Ka1 {[%clk 0:01:31]}  Qc5 {[%clk 0:00:26]} 33. Qe8+ {[%clk 0:01:25]}  Kg7 {[%clk 0:00:27]}
34. Qe7+ {[%clk 0:01:23]}  Kg8 {[%clk 0:00:24]} 35. Qf7+ {[%clk 0:01:24]}  Kh8 {[%clk 0:00:26]} 36. Qf8+ {[%clk 0:01:26]}  Kh7 {[%clk 0:00:27]}
37. Qxh6+ {[%clk 0:01:25]}  Kxh6 {[%clk 0:00:28]} 38. Rxc5 {[%clk 0:01:26]} 1-0